bitfinex-derivatives/quotes_ETHF0:USTF0_20250902
["timestamp","ask_amount","ask_price","bid_price","bid_amount"]
[1756832270631,0.3116,4297.9,4297.3,0.3103]
[1756832270832,0.3116,4297.9,4297.3,0.5513]
[1756832271331,0.3116,4298.4,4297.8,0.3103]
[1756832271530,0.57259372,4298.3,4297.8,0.3103]
[1756832271730,3.2078,4298.6,4297.7,3.4488]
[1756832271731,0.57258022,4298.2,4297.7,3.4488]
[1756832271924,0.3116,4298.1,4297.8,0.3103]
[1756832272125,3.5194,4298.6,4297.8,0.3103]
[1756832272424,0.57281901,4298.5,4297.8,0.3103]
[1756832274034,0.3116,4298.1,4297.7,3.2078]
[1756832274333,0.3116,4298.4,4297.7,3.2078]
[1756832274532,0.57281461,4298.3,4297.7,3.2078]
[1756832274728,0.3116,4298.9,4297.8,0.3103]
[1756832274928,1.7818612,4300.0,4298.3,3.2078]
[1756832274929,0.57284533,4298.8,4298.3,3.2078]
[1756832275228,0.3116,4299.6,4298.5,0.3103]
[1756832275628,0.3116,4299.6,4298.6,0.23260999]
[1756832275927,0.3116,4299.6,4298.7,0.3103]
[1756832276128,0.3116,4299.6,4298.8,0.242]
[1756832276432,0.3116,4299.6,4299.0,0.3103]
[1756832276633,3.2078,4300.0,4299.0,0.3103]
[1756832276825,3.2078,4300.0,4299.1,0.3103]
[1756832277221,3.2078,4300.0,4299.2,0.5523]
[1756832277825,0.3116,4300.1,4299.2,0.5523]
[1756832278036,0.242,4300.4,4299.2,0.5523]
[1756832278331,0.3116,4299.9,4299.2,0.3103]
[1756832278532,0.3116,4299.9,4299.1,0.242]
[1756832278733,0.1168,4300.0,4298.9,3.2078]
[1756832279029,0.3116,4299.9,4298.9,3.2078]
[1756832279235,0.1168,4300.0,4298.9,3.2078]
[1756832279933,0.3116,4299.9,4298.9,3.2078]
[1756832280133,0.1168,4300.0,4298.9,3.2078]
[1756832280535,0.3116,4299.4,4298.9,3.2078]
[1756832281638,0.3116,4299.5,4299.0,0.3103]
[1756832281934,0.1168,4299.5,4298.9,3.2078]
[1756832282328,3.2078,4299.6,4299.0,0.3103]
[1756832283033,0.242,4299.7,4298.9,3.5181]
[1756832283334,0.3116,4299.5,4298.9,3.5181]
[1756832283539,0.3116,4299.4,4298.9,3.2078]
[1756832283832,0.1168,4299.5,4298.9,3.2078]
[1756832284734,0.3116,4299.4,4298.9,3.2078]
[1756832285035,0.3116,4299.2,4298.9,3.2078]
[1756832285231,0.3116,4299.2,4298.5,0.3103]
[1756832287232,3.2078,4299.1,4298.5,0.3103]
[1756832287428,0.3116,4299.0,4298.5,0.3103]
[1756832287639,3.2078,4299.1,4298.5,0.3103]
[1756832287833,0.3116,4299.0,4298.1,0.5523]
[1756832288030,0.3116,4299.0,4298.2,0.23262999]
[1756832288641,0.3116,4299.0,4298.3,0.3103]
[1756832289433,0.5156,4298.4,4298.3,0.2133]
[1756832289738,0.4,4298.1,4298.0,3.2078]
[1756832290039,0.7116,4298.1,4298.0,3.4211]
[1756832290237,0.7116,4298.1,4298.0,3.6289]
[1756832290735,0.7116,4298.1,4298.0,3.2078]
[1756832291237,0.7116,4298.1,4297.5,3.2078]
[1756832291437,0.3588,4298.5,4297.5,3.2078]
[1756832291640,0.3184,4298.3,4297.5,3.2078]
[1756832291827,0.3588,4298.5,4297.5,3.2078]
[1756832292032,0.3184,4298.4,4297.5,3.2078]
[1756832292541,0.3184,4298.4,4297.6,0.2904]
[1756832292732,0.5221,4297.7,4297.6,0.701]
[1756832292932,0.7356,4297.7,4297.6,0.2145]
[1756832294141,0.3184,4297.6,4297.0,3.2078]
[1756832294333,0.3184,4297.6,4297.0,3.6184]
[1756832294334,0.5221,4297.1,4297.0,3.6184]
[1756832294838,3.2078,4297.6,4297.1,0.2904]
[1756832295030,3.5262,4297.6,4297.5,0.701]
[1756832295228,3.2078,4297.6,4297.5,0.701]
[1756832296249,1.2487959,4299.4,4297.5,0.701]
[1756832296250,0.3184,4298.5,4298.4,0.4106]
[1756832296538,0.5604,4299.2,4298.4,0.4106]
[1756832296739,0.7356,4299.2,4299.1,0.2145]
[1756832296934,0.3184,4299.1,4298.1,0.2904]
[1756832297242,0.3184,4299.1,4299.0,0.701]
[1756832297446,3.2078,4299.3,4299.2,0.701]
[1756832297643,3.7299,4299.3,4299.2,0.701]
[1756832297942,3.7299,4299.3,4299.2,0.4106]
[1756832298538,3.7299,4299.3,4299.2,0.701]
[1756832298744,3.9434,4299.3,4299.2,0.2145]
[1756832299036,3.9434,4299.3,4298.7,0.2904]
[1756832299242,3.9434,4299.3,4298.5,3.4498]
[1756832299535,3.2078,4299.3,4298.5,3.4498]
[1756832299735,3.2078,4299.3,4298.5,0.2145]
[1756832299736,0.2037,4298.6,4298.5,0.2145]
[1756832300137,0.2037,4298.6,4298.5,0.4106]
[1756832300343,0.3184,4299.2,4298.5,0.701]
[1756832300538,0.5604,4299.2,4298.5,0.701]
[1756832300843,0.3184,4299.2,4298.5,0.701]
[1756832301137,0.5221,4298.6,4298.5,0.701]
[1756832301341,0.3184,4298.5,4297.9,3.2078]
[1756832304339,0.4172,4298.0,4297.9,3.4223]
[1756832304543,0.3184,4298.4,4297.4,0.242]
[1756832305145,0.3184,4298.4,4297.5,0.2904]
[1756832305342,0.5604,4298.4,4297.5,0.2904]
[1756832306838,0.5604,4298.4,4298.3,0.2145]
[1756832306839,0.7356,4298.4,4298.3,0.2145]
[1756832307041,0.7356,4298.4,4297.4,0.242]
[1756832307242,0.7356,4298.4,4297.5,0.2904]
[1756832307848,0.7356,4298.4,4297.3,3.2078]
[1756832307849,0.2037,4297.4,4297.3,3.4223]
[1756832308145,0.2037,4297.4,4297.3,3.9088]
[1756832308548,0.5221,4297.4,4297.3,3.9088]
[1756832308752,0.5221,4297.4,4297.3,3.6184]
[1756832309240,0.7356,4297.4,4297.3,0.4106]
[1756832309445,0.7356,4297.4,4297.3,0.2145]
[1756832309842,0.3184,4297.9,4297.3,0.4106]
[1756832310040,0.7356,4297.9,4297.8,0.2145]
[1756832310843,0.5221,4297.9,4297.8,0.4106]
[1756832311042,0.3184,4297.9,4297.8,0.701]
[1756832311646,0.5221,4297.9,4297.8,0.701]
[1756832312238,0.5221,4297.9,4297.8,0.4106]
[1756832312440,0.4172,4297.9,4297.3,3.2078]
[1756832312636,0.5221,4297.4,4297.3,0.4106]
[1756832313038,0.7356,4297.4,4297.3,0.4106]
[1756832315547,0.7356,4297.4,4297.3,0.2145]
[1756832315746,0.1286,4297.5,4296.8,3.2078]
[1756832316051,0.5221,4296.9,4296.8,3.9088]
[1756832316350,0.3184,4297.4,4296.8,3.9088]
[1756832316651,0.2037,4296.9,4296.8,3.9088]
[1756832316844,0.5221,4296.9,4296.8,3.9088]
[1756832317252,0.7356,4296.9,4296.8,3.6184]
[1756832318150,0.7356,4296.9,4296.3,3.2078]
[1756832318452,0.7356,4296.4,4296.3,3.6184]
[1756832319051,0.7356,4296.4,4296.3,3.4223]
[1756832320349,3.2078,4297.2,4296.3,3.2078]
[1756832320561,0.5221,4296.9,4296.8,0.701]
[1756832321146,0.2991,4297.2,4296.9,0.3113]
[1756832321352,0.7186,4297.2,4297.1,0.425]
[1756832322355,0.7186,4297.2,4297.1,0.7363]
[1756832322556,0.2991,4297.2,4297.1,0.7363]
[1756832322852,0.2991,4297.7,4297.1,0.425]
[1756832323550,3.2078,4297.8,4297.2,0.3113]
[1756832323849,0.2991,4297.7,4296.8,3.2078]
[1756832324054,0.5069,4296.9,4296.8,3.9441]
[1756832324448,0.2991,4296.9,4296.8,3.9441]
[1756832324650,0.5069,4296.9,4296.8,3.6328]
[1756832324847,0.5069,4296.9,4296.8,3.9441]
[1756832325054,0.7186,4296.9,4296.8,3.4201]
[1756832325354,0.5069,4296.9,4296.8,0.7363]
[1756832325752,0.2991,4296.9,4296.8,0.7363]
[1756832326055,0.2991,4297.4,4296.8,0.7363]
[1756832328252,0.2078,4296.9,4296.8,0.7363]
[1756832328457,0.2991,4296.9,4296.8,0.7363]
[1756832328661,0.2991,4297.6,4296.8,0.7363]
[1756832329561,0.2991,4297.6,4296.8,0.2123]
[1756832329562,0.7186,4296.9,4296.8,0.2123]
[1756832329760,0.5069,4296.9,4296.8,0.7363]
[1756832331059,0.1276,4297.5,4296.8,0.7363]
[1756832331258,0.2991,4297.4,4296.8,0.7363]
[1756832332060,0.5069,4297.4,4297.3,0.425]
[1756832332355,3.2078,4297.8,4297.4,0.3113]
[1756832332560,3.6273,4297.8,4297.7,0.425]
[1756832333255,0.7186,4297.4,4297.3,0.2123]
[1756832333462,0.7186,4297.4,4296.7,0.241]
[1756832333660,0.1276,4297.5,4296.6,3.2078]
[1756832333959,0.1276,4297.5,4296.6,3.6328]
[1756832334158,0.1276,4297.5,4296.6,3.9441]
[1756832334355,0.2991,4297.4,4296.6,3.9441]
[1756832335155,0.5069,4297.4,4297.3,0.425]
[1756832335355,0.2991,4297.7,4297.3,0.425]
[1756832335563,0.2078,4297.5,4296.6,3.2078]
[1756832335757,0.7186,4297.5,4297.4,0.425]
[1756832336152,0.2991,4297.4,4297.0,0.3113]
[1756832336357,0.7186,4297.4,4297.3,0.2123]
[1756832336565,0.7186,4297.4,4297.3,0.425]
[1756832337465,0.7186,4297.4,4296.9,0.3113]
[1756832337963,0.7186,4297.4,4297.3,0.2123]
[1756832338164,0.4195,4297.4,4296.6,3.2078]
[1756832338365,0.1276,4297.5,4296.6,3.2078]
[1756832338560,0.2991,4297.4,4296.6,3.2078]
[1756832338961,0.5069,4296.7,4296.6,3.9441]
[1756832339357,0.1276,4297.5,4296.6,3.9441]
[1756832339558,0.7186,4296.7,4296.6,3.6328]
[1756832339970,0.7186,4296.7,4296.6,3.9441]
[1756832340156,0.5069,4297.4,4297.3,0.425]
[1756832340361,1.07949785,4297.4,4297.3,0.7363]
[1756832340563,1.29119785,4297.4,4297.3,0.2123]
[1756832340762,1.29119785,4297.4,4296.7,0.3113]
[1756832340964,0.7186,4296.8,4296.7,0.2123]
[1756832341268,0.2991,4297.4,4296.8,0.3113]
[1756832341566,0.23271001,4297.7,4296.8,0.3113]
[1756832341765,1.29129334,4297.6,4297.5,0.2123]
[1756832342463,1.29129334,4297.6,4297.0,0.3113]
[1756832342662,1.29129334,4297.5,4297.4,0.2123]
[1756832342863,1.29129334,4297.5,4297.4,0.425]
[1756832343071,1.29129334,4297.5,4297.4,0.7363]
[1756832343670,1.29129334,4297.5,4297.4,0.425]
[1756832343868,1.29129334,4297.5,4297.0,0.3113]
[1756832344070,0.5069,4297.1,4297.0,0.7363]
[1756832344271,0.2991,4297.6,4297.0,0.7363]
[1756832344569,0.5069,4297.1,4297.0,0.7363]
[1756832345163,3.4488,4297.8,4297.0,0.7363]
[1756832345364,0.2078,4297.1,4297.0,0.7363]
[1756832345671,0.7186,4297.1,4297.0,0.425]
[1756832346367,0.5069,4296.2,4296.1,3.9441]
[1756832346574,0.1276,4297.0,4296.1,3.9441]
[1756832346765,0.2991,4296.8,4296.1,3.9441]
[1756832346965,0.1276,4297.0,4296.1,3.9441]
[1756832347166,0.57306301,4296.9,4296.1,3.9441]
[1756832347366,0.87216301,4296.8,4296.1,3.9441]
[1756832347568,0.2078,4296.2,4296.1,3.9441]
[1756832347865,0.1276,4297.0,4296.1,3.9441]
[1756832348073,0.2991,4296.8,4296.2,0.3113]
[1756832348266,0.7186,4296.8,4296.2,0.3113]
[1756832348873,0.2991,4296.7,4296.1,3.2078]
[1756832349080,0.7186,4296.2,4296.1,3.6328]
[1756832349374,0.7186,4296.2,4296.1,3.9441]
[1756832349572,0.7186,4296.2,4296.1,0.7363]
[1756832349774,0.7186,4296.2,4296.1,0.425]
[1756832350374,0.7186,4296.2,4295.6,3.2078]
[1756832350375,0.2991,4296.1,4295.6,3.2078]
[1756832350580,0.5069,4295.7,4295.6,3.9441]
[1756832350771,0.7186,4295.7,4295.6,3.6328]
[1756832351371,0.7186,4295.7,4295.6,3.9498]
[1756832352378,0.5069,4295.7,4295.6,3.9498]
[1756832352576,0.3178,4296.4,4295.6,3.9498]
[1756832352779,0.1276,4296.5,4295.7,0.317]
[1756832352979,1.31603592,4296.4,4296.3,0.2009]
[1756832353178,1.31603592,4296.4,4295.7,0.317]
[1756832353373,0.7422,4296.4,4295.7,0.317]
[1756832353776,0.7422,4296.4,4296.3,0.2009]
[1756832354078,1.31588104,4296.4,4296.3,0.2009]
[1756832354376,0.2117,4296.4,4296.3,0.7253]
[1756832354581,0.7422,4296.4,4296.3,0.7253]
[1756832354768,0.7422,4296.4,4295.6,3.2078]
[1756832354972,0.4244,4295.8,4295.7,0.4083]
[1756832355176,0.7422,4295.8,4295.7,0.4083]
[1756832356575,0.7422,4295.8,4295.7,0.7253]
[1756832356884,0.3178,4296.4,4295.7,0.7253]
[1756832357082,0.1218,4296.5,4295.7,0.7253]
[1756832357376,0.3178,4296.4,4295.7,0.7253]
[1756832357584,0.3178,4296.4,4295.7,0.4083]
[1756832357779,0.5295,4296.4,4296.3,0.2009]
[1756832357977,0.7422,4296.4,4296.3,0.2009]
[1756832360176,0.3178,4296.5,4296.4,0.317]
[1756832360380,0.5295,4296.5,4296.4,0.7253]
[1756832360683,0.7422,4296.5,4296.4,0.7253]
[1756832361078,0.5295,4296.5,4296.4,0.7253]
[1756832361284,3.2078,4296.6,4296.5,0.317]
[1756832361782,3.2078,4296.6,4296.5,0.7253]
[1756832362280,3.2078,4297.9,4296.6,0.0634]
[1756832362482,1.48292245,4298.1,4298.0,0.0634]
[1756832362483,0.47512655,4298.1,4298.0,0.0634]
[1756832362687,0.23412655,4298.1,4298.0,3.7152]
[1756832362879,0.3178,4298.3,4298.0,3.7152]
[1756832363079,0.5295,4298.1,4298.0,3.4108]
[1756832363286,0.3178,4297.9,4297.1,0.241]
[1756832363583,0.2117,4297.2,4297.1,0.1015]
[1756832363772,0.3178,4297.2,4297.1,0.203]
[1756832364185,0.3178,4297.2,4297.1,0.2664]
[1756832364585,0.3178,4297.2,4297.1,0.203]
[1756832364785,0.5295,4297.2,4297.1,0.203]
[1756832365482,0.7422,4297.2,4297.1,0.1015]
[1756832365676,0.7422,4296.7,4296.6,0.1015]
[1756832365877,0.7422,4296.7,4296.6,0.203]
[1756832366077,0.3178,4296.7,4296.6,0.203]
[1756832366786,0.5295,4296.7,4296.6,0.203]
[1756832368380,0.3178,4296.7,4296.6,0.5074]
[1756832368588,0.1218,4297.5,4296.6,0.5074]
[1756832369182,0.3178,4297.4,4296.6,0.5074]
[1756832369588,0.1218,4297.5,4296.6,0.5074]
[1756832369983,0.3178,4297.4,4296.6,0.5074]
[1756832370990,0.1218,4297.5,4296.6,0.5074]
[1756832371289,0.3178,4297.4,4296.6,0.5074]
[1756832371489,0.5462,4297.5,4297.4,0.1015]
[1756832371890,0.5462,4297.5,4297.0,3.4488]
[1756832372091,0.3178,4297.4,4297.0,3.4488]
[1756832372391,0.7422,4297.4,4297.3,0.1015]
[1756832373493,0.3178,4297.3,4297.0,3.2078]
[1756832373689,0.7422,4297.1,4297.0,3.2078]
[1756832374400,0.5295,4296.8,4296.7,0.444]
[1756832376002,0.7422,4296.8,4296.7,0.203]
[1756832377301,0.1218,4297.5,4296.7,0.2664]
[1756832377494,0.2117,4297.0,4296.9,3.4108]
[1756832377699,0.5295,4297.0,4296.9,3.4108]
[1756832377993,0.864,4297.0,4296.9,3.2078]
[1756832378193,0.3178,4297.0,4296.9,3.4108]
[1756832378392,0.7422,4297.0,4296.9,3.4108]
[1756832378588,0.7422,4297.0,4296.6,0.241]
[1756832378589,0.864,4297.0,4296.6,0.241]
[1756832378990,0.864,4296.5,4296.4,3.5503]
[1756832379193,0.864,4296.5,4296.4,3.2078]
[1756832381492,0.864,4296.5,4296.4,3.4118]
[1756832381493,0.7422,4296.5,4296.4,3.4118]
[1756832381695,0.3178,4296.5,4296.4,3.4755]
[1756832382400,0.3178,4296.5,4296.4,3.7165]
[1756832382908,0.52,4296.5,4296.4,3.6528]
[1756832384006,0.3178,4296.5,4296.4,3.6528]
[1756832384702,0.52,4296.5,4296.4,3.6528]
[1756832384907,0.8462,4296.5,4296.4,3.6528]
[1756832385108,0.8462,4296.5,4296.4,3.2078]
[1756832385501,0.8462,4296.5,4296.4,3.3098]
[1756832387208,0.8462,4296.5,4296.4,3.2078]
[1756832387808,0.8462,4296.5,4296.4,3.3098]
[1756832388007,0.8462,4296.5,4296.4,3.4118]
[1756832388204,3.26801308,4296.4,4296.1,0.241]
[1756832388512,0.2972,4296.3,4296.1,0.241]
[1756832389305,3.02701308,4296.1,4295.6,3.2078]
[1756832389509,3.32421308,4296.1,4295.7,0.241]
[1756832389708,0.2972,4296.0,4295.7,0.241]
[1756832390303,2.13425308,4295.7,4295.6,3.2078]
[1756832390503,2.13425308,4295.7,4295.6,3.4488]
[1756832390705,2.13425308,4295.7,4295.6,3.86779]
[1756832390901,0.1218,4297.0,4295.6,3.86779]
[1756832390902,0.2972,4296.9,4295.6,7.68159]
[1756832391105,0.23278,4296.7,4296.2,3.2078]
[1756832391413,0.2972,4296.6,4296.3,0.241]
[1756832391708,0.1218,4297.0,4296.3,0.241]
[1756832391709,0.2972,4296.9,4296.3,0.65991]
[1756832391912,0.35458,4297.0,4296.4,0.41891]
[1756832392108,0.2972,4296.8,4296.7,3.2078]
[1756832392304,0.2972,4297.1,4296.7,3.4488]
[1756832392701,0.2972,4297.4,4296.7,3.4488]
[1756832392906,0.2972,4297.0,4296.7,3.4488]
[1756832393409,0.2972,4296.7,4296.6,40.8]
[1756832393611,0.2972,4296.7,4296.6,41.041]
[1756832394206,0.4056,4296.7,4296.6,0.241]
[1756832394407,0.7028,4296.7,4296.6,0.241]
[1756832397809,0.1228,4297.0,4296.6,0.241]
[1756832398119,0.2972,4296.9,4296.6,0.241]
[1756832398318,0.2972,4297.1,4296.6,0.241]
[1756832398513,0.4994,4297.1,4296.6,0.241]
[1756832398714,0.2022,4297.1,4296.6,0.65989]
[1756832398914,0.1218,4297.5,4296.6,0.241]
[1756832399210,0.2972,4297.0,4296.6,0.241]
[1756832399419,0.2972,4297.1,4296.6,0.241]
[1756832399609,0.2972,4297.4,4296.6,0.241]
[1756832399919,0.1218,4297.5,4297.0,3.2078]
[1756832400115,0.2972,4297.4,4297.2,0.41883]
[1756832400421,0.2972,4297.7,4297.3,40.8]
[1756832400618,0.2972,4297.8,4297.3,40.8]
[1756832400916,0.4994,4297.4,4297.3,40.8]
[1756832401117,0.7028,4297.1,4297.0,3.2078]
[1756832401306,0.2972,4297.1,4297.0,3.4488]
[1756832401513,3.2078,4298.4,4297.2,1.04709]
[1756832401713,0.2972,4298.3,4297.8,3.2078]
[1756832402019,0.2022,4298.3,4297.9,0.65976]
[1756832402211,0.2972,4298.2,4297.9,0.65976]
[1756832402413,0.2972,4298.3,4297.9,0.241]
[1756832402618,0.4994,4298.3,4297.9,0.241]
[1756832402815,0.2022,4298.3,4297.9,0.241]
[1756832403017,3.2078,4298.9,4297.9,0.241]
[1756832403220,0.2972,4298.2,4297.9,0.65976]
[1756832403418,0.2972,4299.4,4298.0,4.23266]
[1756832403622,0.1228,4300.5,4299.8,0.3995]
[1756832403920,0.1228,4300.5,4300.1,0.3995]
[1756832404122,0.23278,4300.3,4300.1,0.3995]
[1756832404517,0.23278,4300.3,4299.9,3.4488]
[1756832404518,0.4056,4299.7,4299.6,40.8]
[1756832404725,0.1228,4299.5,4298.8,3.2078]
[1756832404923,0.1228,4299.5,4297.6,2.08652728]
[1756832404924,0.1228,4299.0,4297.6,2.08652728]
[1756832405118,0.23278,4297.8,4297.5,0.3075]
[1756832405325,3.2078,4298.4,4297.5,0.3075]
[1756832405516,0.23278,4297.7,4297.3,0.3075]
[1756832405714,3.2078,4298.9,4297.6,3.2078]
[1756832405921,0.2972,4298.8,4297.8,0.3075]
[1756832406119,3.4478,4299.6,4298.2,3.2078]
[1756832406320,0.1228,4299.0,4298.2,3.2078]
[1756832406521,0.2972,4298.9,4298.2,3.2078]
[1756832406833,0.2972,4299.4,4298.4,0.3075]
[1756832407026,0.23278,4298.8,4298.3,0.24]
[1756832407227,0.42,4299.0,4298.3,0.24]
[1756832407426,0.1228,4299.0,4298.2,3.2078]
[1756832407724,0.2972,4298.2,4297.8,0.24]
[1756832407929,0.52998,4297.9,4297.8,0.24]
[1756832408331,0.2972,4297.9,4297.8,0.24]
[1756832408630,0.1228,4298.5,4297.6,3.2078]
[1756832408822,0.2972,4298.4,4297.4,0.24]
[1756832409022,0.23278,4298.1,4297.6,3.2078]
[1756832409322,0.52998,4298.1,4297.6,3.2078]
[1756832409525,0.1228,4298.5,4297.6,3.2078]
[1756832409725,0.2972,4298.0,4297.7,0.24]
[1756832409929,0.23278,4298.1,4297.7,0.24]
[1756832410128,0.1228,4298.5,4297.7,0.24]
[1756832410425,0.2972,4298.0,4297.8,0.3075]
[1756832410625,0.23278,4298.2,4297.8,0.3075]
[1756832410920,0.2972,4298.1,4297.7,0.24]
[1756832411129,0.23278,4298.2,4297.7,0.24]
[1756832411424,0.3041,4298.1,4297.8,0.3202]
[1756832411730,0.3041,4298.5,4297.8,0.3202]
[1756832411930,0.3041,4299.0,4298.1,3.2078]
[1756832412224,0.1228,4300.0,4298.7,0.3202]
[1756832412225,0.3041,4299.9,4298.7,0.3202]
[1756832412422,0.23278,4299.6,4298.8,0.24]
[1756832412618,0.1228,4300.0,4298.9,0.24]
[1756832412823,0.1228,4300.0,4298.6,3.2078]
[1756832413029,0.3041,4299.4,4298.7,0.24]
[1756832413626,0.23278,4298.8,4298.7,0.24]
[1756832413824,3.2078,4299.5,4298.8,0.3202]
[1756832414025,0.23278,4299.3,4298.7,0.24]
[1756832414335,0.23278,4299.3,4298.7,0.5602]
[1756832414534,0.3041,4299.4,4298.7,0.5602]
[1756832414833,0.3041,4299.9,4298.8,0.3202]
[1756832415129,0.23278,4299.5,4298.8,0.3202]
[1756832415520,0.3041,4299.6,4298.8,0.3202]
[1756832415723,3.3306,4300.0,4298.8,0.3202]
[1756832415724,0.3041,4299.4,4298.8,0.3202]
[1756832415923,0.3041,4299.0,4298.6,3.2078]
[1756832416228,0.23278,4298.9,4298.7,0.24]
[1756832416421,0.1206,4299.5,4298.7,0.24]
[1756832416422,0.3041,4298.8,4298.7,0.24]
[1756832416622,0.23278,4299.2,4298.7,0.24]
[1756832416822,0.3041,4299.1,4298.6,3.2078]
[1756832417029,0.3041,4299.9,4298.7,0.5602]
[1756832417230,0.23278,4299.2,4298.8,0.3202]
[1756832417525,0.23278,4299.2,4298.6,3.2078]
[1756832417728,0.1206,4299.5,4298.6,3.2078]
[1756832418034,0.23278,4298.7,4298.0,3.2078]
[1756832418229,0.3041,4298.9,4298.1,0.24]
[1756832418427,0.23278,4298.4,4298.1,0.24]
[1756832418628,0.3041,4299.4,4298.2,0.55284]
[1756832418825,0.3041,4299.4,4298.8,0.3202]
[1756832419025,0.3041,4299.4,4298.9,0.24]
[1756832419228,0.3041,4299.4,4299.0,0.3202]
[1756832419520,3.2078,4300.2,4299.2,3.2078]
[1756832419725,0.23278,4299.5,4299.4,0.3202]
[1756832420026,0.53688,4299.5,4299.4,0.3202]
[1756832420324,0.3041,4300.1,4299.4,0.5602]
[1756832420727,0.3041,4299.5,4299.4,0.24]
[1756832420923,0.3041,4299.5,4299.2,3.2078]
[1756832420924,0.1206,4300.0,4299.2,3.2078]
[1756832421124,0.3041,4299.4,4299.2,3.2078]
[1756832421326,0.3041,4299.2,4298.5,3.2078]
[1756832421524,0.3041,4299.4,4298.5,3.4478]
[1756832421840,0.3041,4299.4,4298.6,0.3202]
[1756832422333,0.23278,4299.3,4298.6,0.3202]
[1756832423033,0.23278,4299.1,4298.6,0.3202]
[1756832423334,0.136,4300.3,4298.6,0.3202]
[1756832423335,0.23278,4299.3,4298.6,0.3202]
[1756832423730,0.3041,4299.2,4298.6,0.3202]
[1756832424425,0.3041,4299.4,4298.7,0.24]
[1756832424626,0.23278,4298.9,4298.7,0.24]
[1756832424932,0.3041,4298.8,4298.7,0.24]
[1756832425231,0.3041,4299.6,4298.8,0.3202]
[1756832425528,0.23278,4299.5,4298.8,0.3202]
[1756832425734,0.3041,4299.3,4298.8,0.3202]
[1756832426030,0.23278,4299.5,4299.2,3.2078]
[1756832426230,0.23278,4299.5,4299.3,0.24]
[1756832426433,3.2078,4300.3,4299.3,0.24]
[1756832426622,0.23278,4299.7,4299.4,0.3202]
[1756832427026,0.23278,4299.7,4299.3,0.24]
[1756832427629,0.3041,4299.6,4299.3,0.24]
[1756832427831,0.23278,4299.7,4299.3,0.24]
[1756832428033,0.3041,4299.6,4299.3,0.24]
[1756832428636,0.3041,4300.2,4299.4,0.3202]
[1756832429133,0.3041,4300.7,4299.8,0.3202]
[1756832429339,0.23278,4300.6,4299.9,0.24]
[1756832429637,0.23278,4300.6,4300.0,0.3202]
[1756832429833,0.3041,4300.7,4300.0,0.3202]
[1756832430030,0.23278,4300.5,4299.9,0.24]
[1756832430635,0.3041,4301.2,4300.4,0.3202]
[1756832430832,0.23278,4301.1,4300.6,0.3202]
[1756832431229,0.3041,4301.2,4300.7,0.3202]
[1756832431431,0.3041,4301.7,4300.9,0.3202]
[1756832431633,0.3041,4301.4,4301.1,0.3202]
[1756832431824,0.3041,4301.7,4301.1,0.3202]
[1756832432026,0.3041,4301.3,4301.1,0.3202]
[1756832432230,0.23278,4301.3,4300.8,3.2078]
[1756832432434,0.3041,4301.2,4301.0,0.3202]
[1756832433131,0.3041,4301.7,4301.0,0.3202]
[1756832433337,0.3041,4301.7,4300.9,0.24]
[1756832433633,0.23278,4301.2,4301.0,0.3202]
[1756832433832,0.23278,4301.3,4301.0,0.3202]
[1756832434038,0.3041,4301.8,4301.0,0.3202]
[1756832434432,0.23278,4301.7,4301.0,0.3202]
[1756832434834,0.23278,4301.6,4301.0,0.3202]
[1756832435035,0.3041,4301.8,4301.0,0.3202]
[1756832435343,0.3041,4302.7,4301.4,0.3202]
[1756832435541,0.3041,4302.7,4302.0,0.3202]
[1756832435731,0.23278,4302.4,4302.1,0.24]
[1756832435934,0.3041,4302.3,4302.2,0.24]
[1756832436530,0.3041,4302.3,4301.5,0.3202]
[1756832436735,0.3041,4302.3,4301.6,0.24]
[1756832436941,0.3041,4302.7,4302.0,0.3202]
[1756832437139,0.3041,4302.7,4302.1,0.24]
[1756832437438,0.23278,4302.4,4302.1,0.24]
[1756832437642,0.3041,4302.4,4302.2,0.3202]
[1756832437841,0.3041,4302.7,4302.1,0.24]
[1756832438141,0.3041,4302.7,4302.2,0.24]
[1756832438539,0.23278,4302.3,4302.2,0.24]
[1756832438739,0.53688,4302.3,4302.2,0.24]
[1756832439343,0.3041,4302.2,4301.9,3.2078]
[1756832439537,0.3041,4302.7,4301.9,3.2078]
[1756832439739,0.53688,4302.1,4302.0,0.5602]
[1756832439939,0.53688,4302.1,4302.0,0.24]
[1756832441336,0.96028,4302.1,4302.0,0.4485]
[1756832442343,0.96028,4302.1,4302.0,0.6511]
[1756832443536,0.97048,4302.1,4302.0,0.6511]
[1756832444547,0.97048,4302.1,4301.9,0.24]
[1756832444738,0.7377,4301.5,4301.4,3.6037]
[1756832444941,0.3097,4301.7,4301.4,3.8437]
[1756832445250,0.44688,4301.8,4301.7,0.7151]
[1756832445547,0.5238,4301.8,4301.7,0.7151]
[1756832445844,0.1277,4302.5,4301.5,40.8]
[1756832445845,0.3097,4301.7,4301.5,40.8]
[1756832446047,0.54248,4301.8,4301.7,0.3192]
[1756832446247,0.66078,4301.8,4301.7,0.1933]
[1756832446540,0.66078,4301.8,4301.7,0.6359]
[1756832446541,0.7377,4301.8,4301.7,0.6359]